fUST/lending_fUST_20260408
["ID","MTS","AMOUNT","RATE_DAILY","PERIOD"]
[419995681,1775592638895,-212.0,0.00024,2]
[419995682,1775592638905,-600.0,0.00024177,10]
[419995683,1775592638915,-1000.0,0.000248,2]
[419995686,1775592638926,-1000.0,0.000248,2]
[419995688,1775592638936,-1000.0,0.000248,2]
[419995689,1775592638945,-1000.0,0.000248,2]
[419995691,1775592638954,-1000.0,0.000248,2]
[419995692,1775592638964,-1000.0,0.000248,2]
[419995693,1775592638974,-1000.0,0.000248,2]
[419995694,1775592638983,-1000.0,0.000248,2]
[419995695,1775592638993,-1000.0,0.000248,2]
[419995696,1775592639003,-1000.0,0.000248,2]
[419995697,1775592639012,-47332.02483583,0.000248,2]
[419995698,1775592639021,-16507.28629177,0.0002483,2]
[419995699,1775592639030,-289.3899,0.00024846,2]
[419995700,1775592639039,-340.49362712,0.00024866,2]
[419995701,1775592639048,-224.10299232,0.00024866,2]
[419995702,1775592639057,-340.93044584,0.000249,2]
[419995703,1775592639066,-1406.0,0.00024947,2]
[419995704,1775592639075,-644.0,0.00024947,2]
[419995705,1775592639084,-2205.0,0.00024947,2]
[419995706,1775592639093,-550.0,0.00024947,2]
[419995707,1775592639103,-184.0,0.00024947,2]
[419995708,1775592639112,-440.0,0.00024947,2]
[419995709,1775592639121,-159.0,0.00025,2]
[419995710,1775592639130,-184.0,0.00025,2]
[419995711,1775592639140,-212.0,0.00025,2]
[419995712,1775592639150,-6018.54191838,0.00025,2]
[419995713,1775592639162,-1552.86690941,0.00025,2]
[419995714,1775592639174,-121409.9594877,0.00025,2]
[419995715,1775592639187,-270.83333333,0.00025064,2]
[419995716,1775592639199,-340.93044583,0.00025109,2]
[419995717,1775592639211,-2550.1403355,0.00025275,2]
[419995718,1775592639223,-340.93044583,0.00025317,2]
[419995719,1775592639233,-340.93044583,0.00025526,2]
[419995720,1775592639244,-364.0,0.00025613,2]
[419995721,1775592639255,-321.3110905,0.00025673,30]
[419995722,1775592639266,-416.2315668,0.00025673,30]
[419995723,1775592639278,-340.93044583,0.00025734,2]
[419995724,1775592639288,-6837.02799752,0.00025763,2]
[419995725,1775592639300,-1655435.20232402,0.0002579,2]
[419995726,1775592639316,-1278546.1780346,0.0002579,2]
[419995727,1775592639330,-5109.2557868,0.0002579,2]
[419995821,1775592641206,-611.42793442,0.00021779,2]
[419995823,1775592641220,-347.38665456,0.00021779,2]
[419995828,1775592641263,-853.05390387,0.00021779,2]
[419995958,1775592643469,-3188.13150715,0.00021779,2]
[419995959,1775592643481,-175.88811252,0.00021999,2]
[419995960,1775592643493,-312.0,0.00022405,2]
[419995961,1775592643505,-31009.00321506,0.0002579,2]
[419995962,1775592643519,-321.48318717,0.0002579,2]
[419995963,1775592643533,-1750.0,0.0002579,2]
[419995964,1775592645485,457.0,0.00034243,120]
[419995966,1775592646548,-8868.57946761,0.0002579,2]
[419995978,1775592647154,836.27284282,0.00034243,120]
[419995979,1775592654367,449.0,0.00034243,120]
[419995989,1775592666362,1683.0,0.0003427,120]
[419996002,1775592772641,618.89617786,0.0003427,120]
[419996009,1775592787403,248.631591,0.00027655,120]
[419996011,1775592875920,237.429189,0.00027655,120]
[419996017,1775593253965,258.95893,0.00027655,120]
[419996030,1775593832200,-399.29698368,0.00012142,2]
[419996031,1775593832323,-4278.51373886,0.00012142,2]
[419996176,1775593838890,-322.18927746,0.00012142,2]
[419996177,1775593838900,-3427.84882207,0.00012265,2]
[419996227,1775593842764,-1125.34589103,0.00012265,2]
[419996232,1775593843442,-446.8052869,0.00012265,2]
[419996233,1775593843453,-1000.0,0.00013699,2]
[419996234,1775593843464,-300.0,0.00013972,2]
[419996235,1775593843474,-300.0,0.00013972,2]
[419996236,1775593843484,-300.0,0.00013972,2]
[419996237,1775593843494,-300.0,0.00013972,2]
[419996238,1775593843504,-300.0,0.00013972,2]
[419996239,1775593843515,-300.0,0.00013972,2]
[419996240,1775593843526,-300.0,0.00013972,2]
[419996241,1775593843536,-300.0,0.00013972,2]
[419996242,1775593843546,-300.0,0.00013972,2]
[419996243,1775593843556,-300.0,0.00013972,2]
[419996244,1775593843566,-300.0,0.00013972,2]
[419996245,1775593843576,-300.0,0.00013972,2]
[419996246,1775593843586,-300.0,0.00013972,2]
[419996247,1775593843595,-300.0,0.00013972,2]
[419996248,1775593843605,-300.0,0.00013972,2]
[419996249,1775593843615,-165.0,0.00022,2]
[419996250,1775593843625,-200.0,0.00022,2]
[419996251,1775593843635,-2004.24594873,0.00022,2]
[419996252,1775593843647,-152.0,0.00022,2]
[419996253,1775593843657,-2063.40493447,0.00022051,3]
[419996255,1775593843667,-5001.09565414,0.00022251,5]
[419996256,1775593843677,-1000.0,0.00022855,30]
[419996257,1775593843687,-165.0,0.00023,2]
[419996258,1775593843697,-200.0,0.00023,2]
[419996259,1775593843707,-270.83333333,0.00023,2]
[419996260,1775593843718,-152.0,0.00023,2]
[419996261,1775593843728,-165.0,0.00024,2]
[419996262,1775593843738,-200.0,0.00024,2]
[419996263,1775593843748,-154.0,0.00024,2]
[419996264,1775593843759,-168.0,0.00024954,7]
[419996265,1775593843768,-165.0,0.00025,2]
[419996266,1775593843779,-200.0,0.00025,2]
[419996267,1775593843789,-1000.0,0.00025238,5]
[419996268,1775593843800,-168.0,0.00025393,2]
[419996269,1775593843809,-168.0,0.0002549,2]
[419996270,1775593843820,-168.0,0.00025556,2]
[419996271,1775593843842,-500.0,0.00025573,2]
[419996272,1775593843854,-500.0,0.00025573,2]
[419996273,1775593843865,-500.0,0.00025573,2]
[419996274,1775593843875,-3470.85785753,0.00025573,2]
[419996275,1775593843885,-499.04851176,0.00025589,2]
[419996276,1775593843896,-254.32203734,0.00025589,2]
[419996277,1775593843906,-23706.79701637,0.0002559,2]
[419996278,1775593843921,-428615.867868,0.0002559,2]
[419996286,1775593846506,-4364.09126805,0.0002559,2]
[419996288,1775593957045,-2420.40553728,0.0002178,2]
[419996312,1775594553449,1062.15,0.00032,120]
[419996334,1775595032506,-334.45923056,0.00013699,2]
[419996335,1775595032518,-665.54076944,0.00013699,2]
[419996336,1775595032529,-151.0,0.00022,2]
[419996337,1775595032539,-174.0,0.00022,2]
[419996338,1775595032549,-228.0,0.00022,2]
[419996339,1775595032559,-159.0,0.00022,2]
[419996340,1775595032569,-151.0,0.00023,2]
[419996341,1775595032580,-174.0,0.00023,2]
[419996342,1775595032590,-228.0,0.00023,2]
[419996344,1775595032601,-270.83333333,0.00023,2]
[419996345,1775595032612,-159.0,0.00023,2]
[419996346,1775595032622,-315.19809544,0.00023639,2]
[419996347,1775595032632,-161.19240404,0.00023825,2]
[419996348,1775595032643,-290.14632728,0.00023825,2]
[419996349,1775595032653,-515.29987724,0.00023825,2]
[419996350,1775595032665,-151.0,0.00024,2]
[419996351,1775595032675,-174.0,0.00024,2]
[419996352,1775595032685,-177.28464355,0.00024,2]
[419996353,1775595032699,-50.71535645,0.00024,2]
[419996354,1775595032709,-163.0,0.00024,2]
[419996355,1775595032718,-301.96196485,0.00024883,2]
[419996356,1775595032730,-369.48394845,0.00024883,2]
[419996357,1775595032740,-172.93748246,0.00024883,2]
[419996358,1775595032751,-156.0,0.00025,2]
[419996359,1775595032761,-174.0,0.00025,2]
[419996360,1775595032770,-228.0,0.00025,2]
[419996361,1775595032780,-179.69619595,0.00025079,2]
[419996574,1775595038563,-168.91627647,0.00025079,2]
[419996575,1775595038572,-627.50245036,0.00025079,2]
[419996576,1775595038583,-1114.44435184,0.00025079,2]
[419996577,1775595038593,-192.40406245,0.00025079,2]
[419996578,1775595038603,-345.98098509,0.00025079,2]
[419996579,1775595038613,-700.0,0.000251,2]
[419996580,1775595038622,-1957.85600005,0.00025184,2]
[419996581,1775595038632,-2150.738,0.00025184,2]
[419996582,1775595038641,-1000.0,0.00025197,5]
[419996583,1775595038651,-2214.9731274,0.00025223,2]
[419996584,1775595038660,-500.0,0.00025541,2]
[419996585,1775595038671,-49466.08129379,0.00025542,2]
[419996586,1775595038704,-4139.67013678,0.00025542,2]
[419996587,1775595038715,-382472.57481143,0.00025542,2]
[419996588,1775595038724,-200.0,0.00025551,2]
[419996589,1775595038734,-626631.23921508,0.00025552,2]
[419996590,1775595038744,-981433.34891481,0.00025552,2]
[419996591,1775595038756,-372327.8217222,0.00025552,2]
[419996592,1775595038768,-21202.43506293,0.00025552,2]
[419996593,1775595038784,-3814.79481265,0.00025552,2]
[419996594,1775595038795,-5000.0,0.00025552,2]
[419996775,1775595043837,-4119.01448785,0.00025552,2]
[419996776,1775595043850,-8839.75889643,0.00025552,2]
[419996777,1775595043863,-10839.64487836,0.00025552,2]
[419996790,1775595046832,-1367.87942627,0.00025552,2]
[419996829,1775595681440,-1089.38601302,0.00013426,2]
[419997223,1775596239098,-5000.0,0.0001264,2]
[419997224,1775596239108,-5000.0,0.00012768,2]
[419997225,1775596239119,-1000.0,0.00013699,2]
[419997226,1775596239129,-1909.998488,0.00015,2]
[419997227,1775596239139,-8100.59,0.0002,2]
[419997228,1775596239149,-5000.0,0.00021999,2]
[419997229,1775596239159,-157.0,0.00022,2]
[419997230,1775596239169,-186.0,0.00022,2]
[419997231,1775596239179,-267.0,0.00022,2]
[419997232,1775596239189,-153.0,0.00022,2]
[419997233,1775596239199,-26268.85922422,0.00022,2]
[419997234,1775596239212,-33439.19554571,0.00022,2]
[419997235,1775596239224,-79838.82643718,0.00022,2]
[419997236,1775596239234,-157.0,0.00023,2]
[419997237,1775596239244,-186.0,0.00023,2]
[419997238,1775596239254,-267.0,0.00023,2]
[419997239,1775596239264,-153.0,0.00023,2]
[419997240,1775596239273,-1000.0,0.00023492,30]
[419997241,1775596239283,-157.0,0.00024,2]
[419997242,1775596239293,-186.0,0.00024,2]
[419997243,1775596239302,-267.0,0.00024,2]
[419997244,1775596239312,-153.0,0.00024,2]
[419997245,1775596239322,-3061.47083893,0.00024,7]
[419997246,1775596239332,-420.17646376,0.00024265,2]
[419997247,1775596239341,-409.0,0.00024634,2]
[419997248,1775596239351,-5037.33473005,0.00024653,2]
[419997249,1775596239360,-2150.738,0.00024653,2]
[419997250,1775596239369,-307.0,0.00024883,2]
[419997251,1775596239378,-2205.0,0.00024988,2]
[419997252,1775596239387,-644.0,0.00024988,2]
[419997253,1775596239397,-440.0,0.00024988,2]
[419997254,1775596239407,-552.0,0.00024988,2]
[419997255,1775596239416,-184.0,0.00024988,2]
[419997256,1775596239426,-171.0,0.00025,2]
[419997257,1775596239435,-186.0,0.00025,2]
[419997258,1775596239445,-267.0,0.00025,2]
[419997259,1775596239454,-153.0,0.00025,2]
[419997260,1775596239464,-2230.315306,0.00025201,2]
[419997261,1775596239474,-270.83333333,0.00025239,2]
[419997262,1775596239483,-307.0,0.00025256,2]
[419997263,1775596239493,-2418.0173088,0.00025545,2]
[419997264,1775596239502,-3193.4842579,0.00025545,2]
[419997265,1775596239512,-160.8985166,0.00025545,2]
[419997266,1775596239521,-500.0,0.00025573,2]
[419997267,1775596239532,-168.0,0.00025598,2]
[419997268,1775596239541,-208.1157834,0.00025648,30]
[419997269,1775596239550,-160.6555452,0.00025648,30]
[419997270,1775596239560,-304.0,0.00025675,2]
[419997271,1775596239571,-2196.00504195,0.00025749,2]
[419997272,1775596239580,-111891.21152792,0.0002579,2]
[419997273,1775596239597,-624094.94302034,0.0002579,2]
[419997294,1775596243896,-659.05029991,0.00012514,2]
[419997295,1775596243973,-2367.3153688,0.00012514,2]
[419997328,1775596247379,-1973.63433129,0.00012514,2]
[419997329,1775596247389,-40694.1361817,0.0002579,2]
[419997330,1775596430338,155.0,0.00010011,2]
[419997331,1775596447014,5000.0,0.0001001,2]
[419997332,1775596455983,5000.0,0.0001001,2]
[419997333,1775596470768,5000.0,0.0001001,2]
[419997334,1775596479323,1493.20088004,0.0001001,2]
[419997335,1775596494579,5000.0,0.0001001,2]
[419997336,1775596516877,5000.0,0.0001001,2]
[419997337,1775596538819,5000.0,0.0001001,2]
[419997338,1775596560659,5000.0,0.0001001,2]
[419997339,1775596582485,5000.0,0.0001001,2]
[419997340,1775596604283,5000.0,0.0001001,2]
[419997341,1775596626164,5000.0,0.0001001,2]
[419997342,1775596648459,5000.0,0.0001001,2]
[419997343,1775596671259,5000.0,0.0001001,2]
[419997344,1775596693550,5000.0,0.0001001,2]
[419997345,1775596715435,5000.0,0.0001001,2]
[419997346,1775596737557,5000.0,0.0001001,2]
[419997347,1775596759385,5000.0,0.0001001,2]
[419997348,1775596781664,5000.0,0.0001001,2]
[419997349,1775596803900,5000.0,0.0001001,2]
[419997350,1775596826631,5000.0,0.0001001,2]
[419997351,1775596848709,5000.0,0.0001001,2]
[419997352,1775596870849,5000.0,0.0001001,2]
[419997353,1775596892932,5000.0,0.0001001,2]
[419997356,1775596915345,5000.0,0.0001001,2]
[419997357,1775596937237,5000.0,0.0001001,2]
[419997358,1775596959622,5000.0,0.0001001,2]
[419997359,1775596981847,5000.0,0.0001001,2]
[419997360,1775597003758,5000.0,0.0001001,2]
[419997361,1775597025657,5000.0,0.0001001,2]
[419997362,1775597048353,5000.0,0.0001001,2]
[419997363,1775597070683,5000.0,0.0001001,2]
[419997364,1775597092531,5000.0,0.0001001,2]
[419997365,1775597114743,5000.0,0.0001001,2]
[419997366,1775597136665,5000.0,0.0001001,2]
[419997367,1775597159813,5000.0,0.0001001,2]
[419997368,1775597181941,5000.0,0.0001001,2]
[419997369,1775597203829,5000.0,0.0001001,2]
[419997370,1775597225787,5000.0,0.0001001,2]
[419997371,1775597247617,5000.0,0.0001001,2]
[419997372,1775597269690,5000.0,0.0001001,2]
[419997373,1775597291780,5000.0,0.0001001,2]
[419997374,1775597313889,5000.0,0.0001001,2]
[419997375,1775597335738,5000.0,0.0001001,2]
[419997376,1775597357842,5000.0,0.0001001,2]
[419997378,1775597379478,5000.0,0.0001001,2]
[419997379,1775597401686,5000.0,0.0001001,2]
[419997380,1775597423782,5000.0,0.0001001,2]
[419997414,1775597431767,-675.42364712,0.00010011,2]
[419997415,1775597431779,-2257.09635288,0.00010011,2]
[419997416,1775597431788,-151.0,0.00010812,2]
[419997417,1775597431797,-151.0,0.00010812,2]
[419997418,1775597431806,-151.0,0.00013515,2]
[419997419,1775597431816,-1000.0,0.00013699,2]
[419997420,1775597431825,-173.38364682,0.00021668,5]
[419997421,1775597431834,-187.0,0.00022,2]
[419997422,1775597431843,-286.0,0.00022,2]
[419997423,1775597431852,-156.0,0.00022,2]
[419997424,1775597431862,-185.0,0.00022,2]
[419997425,1775597431872,-433.47193237,0.00022338,2]
[419997426,1775597431883,-969.8913302,0.00022338,2]
[419997427,1775597431894,-1169.56781786,0.00022338,2]
[419997428,1775597431906,-254.25143227,0.00022338,2]
[419997429,1775597431915,-156.46194318,0.00023,2]
[419997430,1775597431935,-30.53805682,0.00023,2]
[419997431,1775597431944,-286.0,0.00023,2]
[419997432,1775597431954,-77.93944896,0.00023,2]
[419997434,1775597431965,-107.06055104,0.00023,2]
[419997436,1775597431974,-187.0,0.00024,2]
[419997437,1775597431985,-286.0,0.00024,2]
[419997438,1775597431994,-185.0,0.00024,2]
[419997439,1775597432004,-183.2788993,0.00024766,5]
[419997699,1775597441168,-423.61164771,0.00024766,5]
[419997701,1775597441179,-168.0,0.0002491,2]
[419997703,1775597441188,-263.8249803,0.00024981,7]
[419997709,1775597441243,-424.1750197,0.00024981,7]
[419997711,1775597441252,-187.0,0.00025,2]
[419997714,1775597441262,-388.8249803,0.00025,2]
[419997720,1775597441315,-1429.95527499,0.00025,2]
[419997728,1775597441474,-6866.21974471,0.00025,2]
[419997729,1775597441484,-286.0,0.00025,2]
[419997730,1775597441493,-185.0,0.00025,2]
[419997731,1775597441503,-687.0,0.00025017,2]
[419997732,1775597441511,-270.83333333,0.00025091,2]
[419997733,1775597441521,-688.0,0.00025095,2]
[419997734,1775597441530,-2887.16798871,0.00025124,2]
[419997735,1775597441540,-3729.16397658,0.00025124,2]
[419997736,1775597441550,-168.0,0.00025135,2]
[419997737,1775597441559,-500.0,0.00025213,2]
[419997738,1775597441568,-518.91601622,0.00025213,2]
[419997739,1775597441577,-500.0,0.00025213,2]
[419997740,1775597441592,-500.0,0.00025213,2]
[419997741,1775597441602,-500.0,0.00025213,2]
[419997742,1775597441612,-500.0,0.00025213,2]
[419997743,1775597441622,-500.0,0.00025213,2]
[419997744,1775597441632,-500.0,0.00025213,2]
[419997745,1775597441642,-500.0,0.00025213,2]
[419997746,1775597441652,-500.0,0.00025213,2]
[419997747,1775597441662,-138.69894045,0.00025213,2]
[419997748,1775597441675,-361.30105955,0.00025213,2]
[419997749,1775597441685,-500.0,0.00025213,2]
[419997750,1775597441695,-500.0,0.00025213,2]
[419997752,1775597441704,-388.21844384,0.00025213,2]
[419997753,1775597441714,-500.0,0.00025213,2]
[419997755,1775597441723,-500.0,0.00025213,2]
[419997757,1775597441733,-500.0,0.00025213,2]
[419997760,1775597441743,-500.0,0.00025213,2]
[419997762,1775597441752,-100.75559279,0.00025213,2]
[419997766,1775597441785,-398.29291897,0.00025213,2]
[419997768,1775597441795,-500.0,0.00025213,2]
[419997770,1775597441805,-175.88811252,0.00025213,2]
[419997772,1775597441815,-500.0,0.00025213,2]
[419997774,1775597441825,-500.0,0.00025213,2]
[419997776,1775597441835,-500.0,0.00025213,2]
[419997779,1775597441845,-500.0,0.00025213,2]
[419997781,1775597441855,-500.0,0.00025213,2]
[419997783,1775597441864,-417.91829091,0.00025213,2]
[419997785,1775597441874,-500.0,0.00025213,2]
[419997787,1775597441883,-500.0,0.00025213,2]
[419997789,1775597441893,-500.0,0.00025213,2]
[419997791,1775597441902,-500.0,0.00025213,2]
[419997793,1775597441912,-500.0,0.00025213,2]
[419997795,1775597441921,-500.0,0.00025213,2]
[419997797,1775597441930,-500.0,0.00025213,2]
[419997799,1775597441939,-500.0,0.00025213,2]
[419997801,1775597441948,-500.0,0.00025213,2]
[419997803,1775597441958,-500.0,0.00025213,2]
[419997805,1775597441967,-500.0,0.00025213,2]
[419997807,1775597441977,-500.0,0.00025213,2]
[419997809,1775597441986,-500.0,0.00025213,2]
[419997811,1775597441996,-500.0,0.00025213,2]
[419997813,1775597442009,-500.0,0.00025213,2]
[419997815,1775597442018,-500.0,0.00025213,2]
[419997817,1775597442028,-500.0,0.00025213,2]
[419997819,1775597442038,-500.0,0.00025213,2]
[419997821,1775597442047,-500.0,0.00025213,2]
[419997824,1775597442058,-500.0,0.00025213,2]
[419997826,1775597442067,-500.0,0.00025213,2]
[419997828,1775597442076,-233.67218771,0.00025213,2]
[419997830,1775597442085,-500.0,0.00025213,2]
[419997832,1775597442095,-500.0,0.00025213,2]
[419997834,1775597442104,-500.0,0.00025213,2]
[419997836,1775597442114,-500.0,0.00025213,2]
[419997838,1775597442123,-500.0,0.00025213,2]
[419997840,1775597442132,-500.0,0.00025213,2]
[419997842,1775597442141,-500.0,0.00025213,2]
[419997844,1775597442150,-500.0,0.00025213,2]
[419997846,1775597442159,-500.0,0.00025213,2]
[419997848,1775597442169,-226.10036019,0.00025213,2]
[419997850,1775597442178,-500.0,0.00025213,2]
[419997852,1775597442187,-500.0,0.00025213,2]
[419997854,1775597442196,-98486.53580559,0.00025214,2]
[419997856,1775597442208,-11596.76951142,0.00025214,2]
[419997858,1775597442219,-1192.67223071,0.00025214,2]
[419997960,1775597443015,-20040.438993,0.00025214,2]
[419997962,1775597443027,-1888.737778,0.00025214,2]
[419997966,1775597443051,-3884.64735648,0.00025214,2]
[419997986,1775597443238,-2323.8385751,0.00025214,2]
[419998158,1775597446334,-5000.0,0.00024962,2]
[419998160,1775597446344,-48773.02655857,0.00025214,2]
[419998162,1775597446355,-7732.58818177,0.00025214,2]
[419998730,1775597495689,1613.0,0.00034175,120]
[419998732,1775597556529,-1209.52611106,0.00021929,2]
[419998769,1775598631965,-295.30926659,0.00011449,2]
[419998772,1775598631978,-4704.69073341,0.00011449,2]
[419998774,1775598631987,-291.2033617,0.00011565,2]
[419998776,1775598632002,-1793.30073341,0.00011565,2]
[419998781,1775598632039,-1009.63662955,0.00011565,2]
[419998788,1775598632115,-296.92009493,0.00011565,2]
[419998790,1775598632127,-524.77349576,0.00011565,2]
[419998850,1775598641070,-950.27927245,0.00011565,2]
[419998859,1775598642023,-133.8864122,0.00011565,2]
[419998860,1775598642034,-275.752,0.00011682,2]
[419998861,1775598642044,-36.77552827,0.00011782,2]
[419998862,1775598642056,-1172.75058279,0.00011782,2]
[419998863,1775598642065,-1000.0,0.00013699,2]
[419998864,1775598642076,-300.0,0.00013972,2]
[419998865,1775598642086,-300.0,0.00013972,2]
[419998866,1775598642097,-300.0,0.00013972,2]
[419998867,1775598642106,-18.38107412,0.00013972,2]
[419998930,1775598643226,-281.61892588,0.00013972,2]
[419998932,1775598643236,-300.0,0.00013972,2]
[419998934,1775598643247,-300.0,0.00013972,2]
[419998936,1775598643257,-164.21127774,0.00013972,2]
[419998941,1775598643453,-135.78872226,0.00013972,2]
[419998943,1775598643464,-300.0,0.00013972,2]
[419998944,1775598643474,-300.0,0.00013972,2]
[419998945,1775598643485,-300.0,0.00013972,2]
[419998946,1775598643495,-300.0,0.00013972,2]
[419998947,1775598643505,-300.0,0.00013972,2]
[419998948,1775598643516,-300.0,0.00013972,2]
[419998949,1775598643527,-300.0,0.00013972,2]
[419998950,1775598643538,-300.0,0.00013972,2]
[419998951,1775598643548,-600.0,0.0001425,2]
[419998952,1775598643558,-300.0,0.00014523,70]
[419998953,1775598643568,-518.38107412,0.00015675,2]
[419999038,1775598646598,-5000.0,0.00015518,2]
[419999040,1775598646608,-201.61892588,0.00015675,2]
[419999042,1775598646617,-864.0,0.00017243,2]
[419999044,1775598646626,-1000.0,0.00018967,2]
[419999046,1775598646635,-173.38364683,0.00019183,2]
[419999048,1775598646645,-1000.0,0.00019714,2]
[419999049,1775598646655,-1000.0,0.00020864,2]
[419999051,1775598646666,-244.0,0.00020864,2]
[419999053,1775598646675,-6691.5653398,0.00021128,2]
[419999055,1775598646684,-229.0,0.00022,2]
[419999057,1775598646694,-156.0,0.00022,2]
[419999059,1775598646703,-158.0,0.00022,2]
[419999061,1775598646713,-1431.0506836,0.00022375,2]
[419999063,1775598646722,-1000.0,0.0002295,10]
[419999065,1775598646731,-492.0,0.0002295,10]
[419999067,1775598646741,-229.0,0.00023,2]
[419999069,1775598646751,-156.0,0.00023,2]
[419999071,1775598646760,-270.83333333,0.00023,2]
[419999072,1775598646770,-158.0,0.00023,2]
[419999073,1775598646780,-229.0,0.00024,2]
[419999075,1775598646790,-156.0,0.00024,2]
[419999076,1775598646799,-158.0,0.00024,2]
[419999077,1775598646809,-151.5,0.00024651,2]
[419999078,1775598646818,-151.5,0.00024651,2]
[419999079,1775598646828,-200.0,0.00024651,2]
[419999080,1775598646837,-151.5,0.00024651,2]
[419999081,1775598646846,-221.1372934,0.00024651,2]
[419999083,1775598646856,-151.5,0.00024651,2]
[419999084,1775598646865,-298.5,0.00024651,2]
[419999086,1775598646873,-500.0,0.00024658,2]
[419999088,1775598646883,-500.0,0.00024658,2]
[419999090,1775598646893,-500.0,0.00024658,2]
[419999092,1775598646903,-500.0,0.00024658,2]
[419999094,1775598646912,-500.0,0.00024658,2]
[419999096,1775598646922,-532.88608292,0.00024658,2]
[419999098,1775598646931,-151.5,0.00024752,16]
[419999100,1775598646941,-298.5,0.00024752,16]
[419999102,1775598646950,-455.4746423,0.00024886,2]
[419999104,1775598646959,-3495.60468514,0.00024899,2]
[419999106,1775598646968,-1830.19519928,0.00024899,2]
[419999108,1775598646977,-500.0,0.00024915,2]
[419999109,1775598646986,-500.0,0.00024915,2]
[419999110,1775598646995,-500.0,0.00024915,2]
[419999111,1775598647005,-445.94894105,0.00024915,2]
[419999112,1775598647014,-500.0,0.00024915,2]
[419999113,1775598647023,-500.0,0.00024915,2]
[419999114,1775598647032,-500.0,0.00024915,2]
[419999115,1775598647042,-500.0,0.00024915,2]
[419999116,1775598647051,-500.0,0.00024915,2]
[419999117,1775598647060,-520.27997517,0.00024915,2]
[419999118,1775598647070,-500.0,0.00024915,2]
[419999119,1775598647081,-262.00257625,0.00024915,2]
[419999120,1775598647094,-500.0,0.00024915,2]
[419999121,1775598647103,-500.0,0.00024915,2]
[419999122,1775598647113,-500.0,0.00024915,2]
[419999123,1775598647122,-500.0,0.00024915,2]
[419999124,1775598647131,-414.8524653,0.00024915,2]
[419999125,1775598647141,-500.0,0.00024915,2]
[419999126,1775598647150,-500.0,0.00024915,2]
[419999127,1775598647160,-500.0,0.00024915,2]
[419999128,1775598647171,-500.0,0.00024915,2]
[419999129,1775598647180,-684.44,0.00024916,3]
[419999130,1775598647190,-370039.06242078,0.00024916,2]
[419999131,1775598647203,-6957.75998448,0.00024916,2]
[419999132,1775598647215,-426.28855298,0.00024916,2]
[419999133,1775598647226,-15630.2,0.00024916,2]
[419999134,1775598647238,-1245.14528569,0.00024916,2]
[419999135,1775598647250,-119145.73041807,0.00024916,2]
[419999136,1775598647259,-197.3633,0.00024925,2]
[419999137,1775598647268,-200.0,0.00024925,2]
[419999138,1775598647277,-635429.52697981,0.00024926,2]
[419999139,1775598647291,-26665.66992011,0.00024926,2]
[419999142,1775599280728,-1032.73798582,0.00013159,2]
[419999143,1775599666151,26895.0,0.00034197,120]
[419999152,1775599806365,7062.29212004,7.6e-05,2]
[419999204,1775599832319,-277.34099666,0.00013426,2]
[419999206,1775599832328,-390.34247286,0.00013699,2]
[419999277,1775599838534,-609.65752714,0.00013699,2]
[419999278,1775599838544,-779.94935605,0.00014175,2]
[419999279,1775599838554,-840.0,0.00015405,2]
[419999280,1775599838564,-1499.84404506,0.00015406,2]